[Event "*** Titled Tuesday Blitz"]
[Site "Chess.com"]
[Date "2020.02.04"]
[Round "6"]
[White "Evgeny81"]
[Black "platy3"]
[Result "1/2-1/2"]
[WhiteElo "2704"]
[BlackElo "2898"]
[TimeControl "180+2"]
[EndTime "10:22:00 PST"]
[Termination "Game drawn by repetition"]

1. d4 {[%clk 0:03:01.9]} 1... Nf6 {[%clk 0:02:59.8]} 2. c4 {[%clk 0:03:01.6]}
2... e6 {[%clk 0:03:01.2]} 3. Nf3 {[%clk 0:03:02.4]} 3... d5 {[%clk 0:03:02.2]}
4. Nc3 {[%clk 0:03:03.3]} 4... dxc4 {[%clk 0:03:01.6]} 5. e3 {[%clk 0:03:03.3]}
5... a6 {[%clk 0:03:00.9]} 6. Bxc4 {[%clk 0:03:03.6]} 6... b5 {[%clk 0:03:01]}
7. Be2 {[%clk 0:03:04.7]} 7... Bb7 {[%clk 0:03:01.5]} 8. O-O {[%clk 0:03:05.8]}
8... Nbd7 {[%clk 0:03:00.4]} 9. b3 {[%clk 0:03:06.8]} 9... c5 {[%clk 0:02:59.6]}
10. Bb2 {[%clk 0:03:06.5]} 10... cxd4 {[%clk 0:02:56.6]} 11. Qxd4 {[%clk
0:03:05.9]} 11... Bc5 {[%clk 0:02:52.5]} 12. Qf4 {[%clk 0:03:06.3]} 12... O-O
{[%clk 0:02:43.3]} 13. Rfd1 {[%clk 0:03:06.9]} 13... Qb8 {[%clk 0:02:43.5]} 14.
Qxb8 {[%clk 0:03:04.3]} 14... Raxb8 {[%clk 0:02:43.1]} 15. Rac1 {[%clk
0:03:05.3]} 15... Rbc8 {[%clk 0:02:40.1]} 16. a4 {[%clk 0:02:56.7]} 16... b4
{[%clk 0:02:36.2]} 17. Nb1 {[%clk 0:02:57.6]} 17... Be7 {[%clk 0:02:26.1]} 18.
Nbd2 {[%clk 0:02:54.9]} 18... Nc5 {[%clk 0:02:26.2]} 19. Bd4 {[%clk 0:02:26.9]}
19... Rc7 {[%clk 0:02:07.2]} 20. Be5 {[%clk 0:02:14.3]} 20... Rd7 {[%clk
0:01:59.6]} 21. Bxf6 {[%clk 0:02:10.7]} 21... gxf6 {[%clk 0:01:59.1]} 22. Kf1
{[%clk 0:01:52.3]} 22... f5 {[%clk 0:01:59.3]} 23. Ne5 {[%clk 0:01:51.5]} 23...
Rd5 {[%clk 0:01:53.4]} 24. Nec4 {[%clk 0:01:48.6]} 24... e5 {[%clk 0:01:46.1]}
25. Na5 {[%clk 0:01:29.4]} 25... Ba8 {[%clk 0:01:41.3]} 26. Ndc4 {[%clk
0:01:30.1]} 26... Rfd8 {[%clk 0:01:14.4]} 27. Rxd5 {[%clk 0:01:21.5]} 27... Bxd5
{[%clk 0:01:16.3]} 28. Nxe5 {[%clk 0:01:08.2]} 28... Nxb3 {[%clk 0:01:07.6]} 29.
Nxb3 {[%clk 0:01:06.7]} 29... Bxb3 {[%clk 0:01:09.5]} 30. Nc6 {[%clk 0:01:06.7]}
30... Rd7 {[%clk 0:01:10]} 31. Rb1 {[%clk 0:00:53.9]} 31... Bxa4 {[%clk
0:01:04.6]} 32. Nxe7+ {[%clk 0:00:54.6]} 32... Rxe7 {[%clk 0:01:06.5]} 33. Rxb4
{[%clk 0:00:55.8]} 33... Bb5 {[%clk 0:01:08.1]} 34. Bxb5 {[%clk 0:00:55.1]}
34... Rb7 {[%clk 0:01:09.6]} 35. Ra4 {[%clk 0:00:45]} 35... axb5 {[%clk
0:01:09.8]} 36. Rb4 {[%clk 0:00:25.6]} 36... Kg7 {[%clk 0:01:10.9]} 37. Ke2
{[%clk 0:00:26.3]} 37... Kf6 {[%clk 0:01:12.2]} 38. Kd3 {[%clk 0:00:26.2]} 38...
Ke5 {[%clk 0:01:13.6]} 39. Rh4 {[%clk 0:00:21.1]} 39... b4 {[%clk 0:01:01.6]}
40. Kc2 {[%clk 0:00:18.9]} 40... b3+ {[%clk 0:01:02.8]} 41. Kb2 {[%clk
0:00:19.1]} 41... f6 {[%clk 0:01:01.4]} 42. Rd4 {[%clk 0:00:17.1]} 42... h5
{[%clk 0:00:57.8]} 43. h4 {[%clk 0:00:14.5]} 43... Rb8 {[%clk 0:00:57.2]} 44. g3
{[%clk 0:00:12.7]} 44... Rb7 {[%clk 0:00:51.7]} 45. Rf4 {[%clk 0:00:08.6]} 45...
Rb8 {[%clk 0:00:50.9]} 46. Rd4 {[%clk 0:00:08.6]} 46... Rb7 {[%clk 0:00:50.9]}
47. Ra4 {[%clk 0:00:06.8]} 47... Rb8 {[%clk 0:00:47.5]} 48. Rd4 {[%clk
0:00:06.8]} 1/2-1/2

[Event "*** Titled Tuesday Blitz"]
[Site "Chess.com"]
[Date "2020.02.04"]
[Round "6"]
[White "DevikBronstein"]
[Black "Anton_Demchenko"]
[Result "0-1"]
[WhiteElo "2725"]
[BlackElo "2961"]
[TimeControl "180+2"]
[EndTime "10:22:02 PST"]
[Termination "Anton_Demchenko won by resignation"]

1. e4 {[%clk 0:03:01.9]} 1... e5 {[%clk 0:03:00.1]} 2. Nf3 {[%clk 0:03:03.1]}
2... Nc6 {[%clk 0:02:56.7]} 3. Bb5 {[%clk 0:03:04]} 3... g6 {[%clk 0:02:53.5]}
4. c3 {[%clk 0:03:00.9]} 4... a6 {[%clk 0:02:53.7]} 5. Ba4 {[%clk 0:03:01.8]}
5... Bg7 {[%clk 0:02:55.2]} 6. O-O {[%clk 0:03:02.9]} 6... d6 {[%clk 0:02:54.8]}
7. d4 {[%clk 0:03:03.7]} 7... Bd7 {[%clk 0:02:56.2]} 8. Bg5 {[%clk 0:03:03.9]}
8... Nge7 {[%clk 0:02:56.9]} 9. d5 {[%clk 0:02:59]} 9... Nb8 {[%clk 0:02:57.8]}
10. c4 {[%clk 0:03:00.2]} 10... O-O {[%clk 0:02:54.6]} 11. Nc3 {[%clk
0:02:58.3]} 11... h6 {[%clk 0:02:51.8]} 12. Bxe7 {[%clk 0:02:45.3]} 12... Qxe7
{[%clk 0:02:50.8]} 13. Ne1 {[%clk 0:02:46.9]} 13... Bc8 {[%clk 0:02:45.3]} 14.
Nd3 {[%clk 0:02:46.8]} 14... Nd7 {[%clk 0:02:45.8]} 15. b4 {[%clk 0:02:46.5]}
15... f5 {[%clk 0:02:46.7]} 16. c5 {[%clk 0:02:44.8]} 16... Nf6 {[%clk
0:02:40.9]} 17. f3 {[%clk 0:02:41.7]} 17... h5 {[%clk 0:02:40.1]} 18. Rc1 {[%clk
0:02:30.7]} 18... Bh6 {[%clk 0:02:41]} 19. Rc2 {[%clk 0:02:30.6]} 19... Be3+
{[%clk 0:02:41.4]} 20. Kh1 {[%clk 0:02:30.9]} 20... h4 {[%clk 0:02:38.9]} 21.
Qe1 {[%clk 0:02:32.1]} 21... f4 {[%clk 0:02:37.7]} 22. Qxh4 {[%clk 0:02:30.5]}
22... Kg7 {[%clk 0:02:38.6]} 23. g4 {[%clk 0:02:30.5]} 23... fxg3 {[%clk
0:02:21.9]} 24. Qxg3 {[%clk 0:02:23.5]} 24... Nh5 {[%clk 0:02:22.3]} 25. Qe1
{[%clk 0:02:24.5]} 25... Qg5 {[%clk 0:02:05.6]} 26. Rg2 {[%clk 0:02:22.3]} 26...
Qh6 {[%clk 0:02:06.9]} 27. Qh4 {[%clk 0:02:04.7]} 27... Nf4 {[%clk 0:01:23.7]}
28. Qxh6+ {[%clk 0:01:53.8]} 28... Kxh6 {[%clk 0:01:25.6]} 29. Nxf4 {[%clk
0:01:54.6]} 29... exf4 {[%clk 0:01:27.5]} 30. cxd6 {[%clk 0:01:44.6]} 30... cxd6
{[%clk 0:01:29.4]} 31. Rc2 {[%clk 0:01:37.7]} 31... Bh3 {[%clk 0:01:29.8]} 32.
Re1 {[%clk 0:01:38.8]} 32... Rac8 {[%clk 0:01:31.2]} 33. Nd1 {[%clk 0:00:46.7]}
33... Rxc2 {[%clk 0:01:28.9]} 34. Bxc2 {[%clk 0:00:48.6]} 34... Bd4 {[%clk
0:01:30.5]} 35. Re2 {[%clk 0:00:34.1]} 35... Rc8 {[%clk 0:01:27]} 36. Rd2 {[%clk
0:00:35.1]} 36... Bb6 {[%clk 0:01:04.5]} 37. Bb3 {[%clk 0:00:36]} 37... Kg7
{[%clk 0:00:56.7]} 38. Rc2 {[%clk 0:00:35.2]} 38... Rxc2 {[%clk 0:00:53.4]} 39.
Bxc2 {[%clk 0:00:37.1]} 39... Kf6 {[%clk 0:00:54.9]} 40. Nb2 {[%clk 0:00:36.6]}
40... g5 {[%clk 0:00:49]} 41. Nc4 {[%clk 0:00:34.8]} 41... Bc7 {[%clk 0:00:48]}
42. Bd3 {[%clk 0:00:35.6]} 42... b5 {[%clk 0:00:47.3]} 43. Nd2 {[%clk
0:00:29.6]} 43... Ke5 {[%clk 0:00:46.3]} 44. Nb3 {[%clk 0:00:30.7]} 44... Bb6
{[%clk 0:00:44.8]} 45. Be2 {[%clk 0:00:24.7]} 45... g4 {[%clk 0:00:43.6]} 46.
fxg4 {[%clk 0:00:25.7]} 46... Kxe4 {[%clk 0:00:44.9]} 47. g5 {[%clk 0:00:27.1]}
47... Ke3 {[%clk 0:00:41.4]} 48. Bh5 {[%clk 0:00:07]} 48... Kf2 {[%clk
0:00:39.8]} 0-1

[Event "*** Titled Tuesday Blitz"]
[Site "Chess.com"]
[Date "2020.02.04"]
[Round "6"]
[White "DamianoLew95"]
[Black "heyiampotato"]
[Result "1-0"]
[WhiteElo "2599"]
[BlackElo "2471"]
[TimeControl "180+2"]
[EndTime "10:22:08 PST"]
[Termination "DamianoLew95 won by resignation"]

1. d4 {[%clk 0:02:56.1]} 1... Nf6 {[%clk 0:02:59.3]} 2. Bf4 {[%clk 0:02:53.9]}
2... g6 {[%clk 0:02:58.5]} 3. Nc3 {[%clk 0:02:51.5]} 3... d5 {[%clk 0:02:58.2]}
4. e3 {[%clk 0:02:52.5]} 4... Bg7 {[%clk 0:02:58.3]} 5. h4 {[%clk 0:02:54]} 5...
h5 {[%clk 0:02:54.5]} 6. Nf3 {[%clk 0:02:54.6]} 6... O-O {[%clk 0:02:50.8]} 7.
Ne5 {[%clk 0:02:54.2]} 7... Nbd7 {[%clk 0:02:45.1]} 8. Be2 {[%clk 0:02:51.1]}
8... Nxe5 {[%clk 0:02:34.8]} 9. dxe5 {[%clk 0:02:48.1]} 9... Ng4 {[%clk
0:02:35.7]} 10. Qxd5 {[%clk 0:02:42.2]} 10... Nxe5 {[%clk 0:01:29.4]} 11. Bxe5
{[%clk 0:02:37.7]} 11... Qxd5 {[%clk 0:01:30]} 12. Nxd5 {[%clk 0:02:37.9]} 12...
Bxe5 {[%clk 0:01:31.6]} 13. Nxe7+ {[%clk 0:02:38.6]} 13... Kg7 {[%clk
0:01:32.8]} 14. Nxc8 {[%clk 0:02:39.5]} 14... Bxb2 {[%clk 0:01:22.2]} 15. Rb1
{[%clk 0:02:40]} 15... Bc3+ {[%clk 0:01:23.3]} 16. Kf1 {[%clk 0:02:41.4]} 16...
Rfxc8 {[%clk 0:01:15.7]} 17. Rxb7 {[%clk 0:02:39.8]} 17... Rab8 {[%clk
0:01:16.3]} 18. Rb3 {[%clk 0:02:40.6]} 18... Bf6 {[%clk 0:00:40.7]} 19. Ba6
{[%clk 0:02:31.5]} 19... Rd8 {[%clk 0:00:40.2]} 20. Ke2 {[%clk 0:02:32.3]} 20...
Rb6 {[%clk 0:00:36.4]} 21. Bd3 {[%clk 0:02:32]} 21... Rd5 {[%clk 0:00:32]} 22.
Rxb6 {[%clk 0:02:16.3]} 22... axb6 {[%clk 0:00:31]} 23. a4 {[%clk 0:02:17.1]}
23... Rc5 {[%clk 0:00:20.3]} 24. g3 {[%clk 0:02:15.4]} 24... Rc3 {[%clk
0:00:21.2]} 25. Rb1 {[%clk 0:02:10.8]} 25... Ra3 {[%clk 0:00:22.5]} 26. Rb4
{[%clk 0:02:11.2]} 26... Be5 {[%clk 0:00:21.7]} 27. Re4 {[%clk 0:02:05.6]} 27...
Bd6 {[%clk 0:00:22.5]} 28. f4 {[%clk 0:01:54.5]} 28... Kf6 {[%clk 0:00:22.9]}
29. Rc4 {[%clk 0:01:48.1]} 29... Ra1 {[%clk 0:00:23.9]} 30. e4 {[%clk
0:01:39.1]} 30... Bc5 {[%clk 0:00:25]} 31. e5+ {[%clk 0:01:37.2]} 31... Ke7
{[%clk 0:00:22.3]} 32. Re4 {[%clk 0:01:36.4]} 32... Rg1 {[%clk 0:00:21.9]} 33.
Kf3 {[%clk 0:01:36.8]} 33... Rb1 {[%clk 0:00:16.2]} 34. Rc4 {[%clk 0:01:33.4]}
34... Rb4 {[%clk 0:00:16.5]} 35. g4 {[%clk 0:01:24.3]} 35... hxg4+ {[%clk
0:00:14.9]} 36. Kxg4 {[%clk 0:01:25.1]} 36... Rxc4 {[%clk 0:00:14.8]} 37. Bxc4
{[%clk 0:01:26.5]} 37... Be3 {[%clk 0:00:15.8]} 38. f5 {[%clk 0:01:27.1]} 38...
Bd4 {[%clk 0:00:08.4]} 39. Kf4 {[%clk 0:01:12.2]} 39... gxf5 {[%clk 0:00:08.1]}
40. Kxf5 {[%clk 0:01:12.8]} 40... Be3 {[%clk 0:00:04.4]} 41. h5 {[%clk
0:01:14.2]} 41... Bd2 {[%clk 0:00:05.1]} 42. Be2 {[%clk 0:01:10.1]} 42... Bc1
{[%clk 0:00:06.1]} 43. Bg4 {[%clk 0:01:10.9]} 43... Bd2 {[%clk 0:00:07.4]} 44.
Ke4 {[%clk 0:01:12.2]} 44... Bc1 {[%clk 0:00:08.4]} 45. Kd5 {[%clk 0:01:13.4]}
45... Bf4 {[%clk 0:00:09.3]} 46. Bf5 {[%clk 0:01:13.8]} 46... Be3 {[%clk
0:00:07]} 47. c4 {[%clk 0:01:14.4]} 47... Bf4 {[%clk 0:00:08.1]} 48. c5 {[%clk
0:01:10.8]} 48... Be3 {[%clk 0:00:08]} 49. Kc6 {[%clk 0:01:09]} 49... Bxc5
{[%clk 0:00:06.7]} 50. a5 {[%clk 0:01:09.2]} 50... Bd4 {[%clk 0:00:06]} 51. a6
{[%clk 0:01:04.9]} 51... b5 {[%clk 0:00:07.4]} 52. Kxb5 {[%clk 0:01:01.1]} 52...
Kf8 {[%clk 0:00:08.7]} 53. h6 {[%clk 0:00:55.5]} 53... f6 {[%clk 0:00:06.7]} 54.
e6 {[%clk 0:00:55]} 54... Ke7 {[%clk 0:00:06.9]} 1-0

[Event "*** Titled Tuesday Blitz"]
[Site "Chess.com"]
[Date "2020.02.04"]
[Round "6"]
[White "Kobalia"]
[Black "Shield12"]
[Result "0-1"]
[WhiteElo "2672"]
[BlackElo "2893"]
[TimeControl "180+2"]
[EndTime "10:22:18 PST"]
[Termination "Shield12 won on time"]

1. e4 {[%clk 0:03:01.9]} 1... e5 {[%clk 0:03:01.1]} 2. Nf3 {[%clk 0:03:02.2]}
2... Nc6 {[%clk 0:03:02.6]} 3. Bc4 {[%clk 0:03:03]} 3... Bc5 {[%clk 0:03:03.3]}
4. O-O {[%clk 0:03:03.5]} 4... Nf6 {[%clk 0:03:04.3]} 5. d3 {[%clk 0:03:04.2]}
5... a6 {[%clk 0:03:05.1]} 6. h3 {[%clk 0:03:04]} 6... d6 {[%clk 0:03:04.9]} 7.
a4 {[%clk 0:03:04.4]} 7... Ba7 {[%clk 0:03:04.6]} 8. Re1 {[%clk 0:03:04.4]} 8...
h6 {[%clk 0:03:05.5]} 9. Nbd2 {[%clk 0:02:58.2]} 9... g5 {[%clk 0:03:05.8]} 10.
Nf1 {[%clk 0:02:40.9]} 10... g4 {[%clk 0:03:05.3]} 11. hxg4 {[%clk 0:02:40.4]}
11... Nxg4 {[%clk 0:03:05]} 12. Be3 {[%clk 0:02:38]} 12... Rg8 {[%clk
0:02:47.7]} 13. Bxa7 {[%clk 0:02:37.2]} 13... Rxa7 {[%clk 0:02:49.1]} 14. Ne3
{[%clk 0:02:27.1]} 14... h5 {[%clk 0:02:44.6]} 15. c3 {[%clk 0:02:18.5]} 15...
Ne7 {[%clk 0:02:42.9]} 16. Qb3 {[%clk 0:02:16.7]} 16... Rg7 {[%clk 0:02:41.2]}
17. Nh4 {[%clk 0:02:12.3]} 17... Nxe3 {[%clk 0:02:07.8]} 18. Rxe3 {[%clk
0:02:11.3]} 18... Nc6 {[%clk 0:02:07.8]} 19. Rg3 {[%clk 0:01:59.6]} 19... Kf8
{[%clk 0:01:58.6]} 20. Rxg7 {[%clk 0:01:50.4]} 20... Kxg7 {[%clk 0:02:00.5]} 21.
g3 {[%clk 0:01:51.1]} 21... Na5 {[%clk 0:01:59.7]} 22. Qd1 {[%clk 0:01:49]}
22... Nxc4 {[%clk 0:01:59]} 23. dxc4 {[%clk 0:01:47.5]} 23... Qg5 {[%clk
0:01:52]} 24. c5 {[%clk 0:01:31.5]} 24... dxc5 {[%clk 0:01:48.6]} 25. Qd5 {[%clk
0:01:31.1]} 25... b6 {[%clk 0:01:20.3]} 26. Nf3 {[%clk 0:01:29.4]} 26... Qf6
{[%clk 0:01:18.8]} 27. Qxe5 {[%clk 0:01:19.2]} 27... Bg4 {[%clk 0:01:18.4]} 28.
Qxf6+ {[%clk 0:01:16.7]} 28... Kxf6 {[%clk 0:01:20.3]} 29. Nd2 {[%clk
0:01:17.2]} 29... Ra8 {[%clk 0:01:19.6]} 30. f3 {[%clk 0:01:14.5]} 30... Be6
{[%clk 0:01:19.5]} 31. Kf2 {[%clk 0:01:14.3]} 31... Rd8 {[%clk 0:01:18.5]} 32.
Ke3 {[%clk 0:01:14.3]} 32... c4 {[%clk 0:01:17.9]} 33. a5 {[%clk 0:01:12.6]}
33... b5 {[%clk 0:01:16.6]} 34. Rh1 {[%clk 0:01:11.7]} 34... Kg6 {[%clk
0:01:14.4]} 35. Ke2 {[%clk 0:01:03]} 35... c5 {[%clk 0:01:13.5]} 36. Nf1 {[%clk
0:00:57]} 36... b4 {[%clk 0:00:56.1]} 37. Ne3 {[%clk 0:00:57.3]} 37... bxc3
{[%clk 0:00:48.1]} 38. bxc3 {[%clk 0:00:57.2]} 38... Rd3 {[%clk 0:00:48.3]} 39.
Rc1 {[%clk 0:00:55.4]} 39... f6 {[%clk 0:00:47.8]} 40. g4 {[%clk 0:00:44.2]}
40... hxg4 {[%clk 0:00:46.7]} 41. fxg4 {[%clk 0:00:27.7]} 41... Kg5 {[%clk
0:00:47.3]} 42. Rb1 {[%clk 0:00:22.4]} 42... Kf4 {[%clk 0:00:47]} 43. Ng2+
{[%clk 0:00:20.5]} 43... Kxe4 {[%clk 0:00:48]} 44. Rb6 {[%clk 0:00:18.9]} 44...
Bxg4+ {[%clk 0:00:49]} 45. Kf2 {[%clk 0:00:20]} 45... Rxc3 {[%clk 0:00:44.3]}
46. Rxf6 {[%clk 0:00:19.4]} 46... Rf3+ {[%clk 0:00:42.8]} 47. Rxf3 {[%clk
0:00:19.4]} 47... Bxf3 {[%clk 0:00:44.7]} 48. Ne3 {[%clk 0:00:16.4]} 48... c3
{[%clk 0:00:45.3]} 49. Nc2 {[%clk 0:00:16.3]} 49... Bd1 {[%clk 0:00:44.2]} 0-1

[Event "*** Titled Tuesday Blitz"]
[Site "Chess.com"]
[Date "2020.02.04"]
[Round "6"]
[White "Volodar_Murzin"]
[Black "Bigfish1995"]
[Result "1-0"]
[WhiteElo "2612"]
[BlackElo "3028"]
[TimeControl "180+2"]
[EndTime "10:22:30 PST"]
[Termination "Volodar_Murzin won by resignation"]

1. d4 {[%clk 0:03:01.9]} 1... Nf6 {[%clk 0:02:59.4]} 2. Nf3 {[%clk 0:03:03]}
2... g6 {[%clk 0:03:00.6]} 3. Bg5 {[%clk 0:03:04]} 3... Bg7 {[%clk 0:03:01.9]}
4. Nbd2 {[%clk 0:03:04.9]} 4... O-O {[%clk 0:03:02.9]} 5. c3 {[%clk 0:03:05.1]}
5... d6 {[%clk 0:03:04.2]} 6. e3 {[%clk 0:03:05.7]} 6... c5 {[%clk 0:03:05.5]}
7. Bd3 {[%clk 0:03:06.3]} 7... Qc7 {[%clk 0:03:00.8]} 8. O-O {[%clk 0:03:06.6]}
8... b6 {[%clk 0:03:00.7]} 9. Qe2 {[%clk 0:03:07.3]} 9... Bb7 {[%clk 0:03:01]}
10. a4 {[%clk 0:03:07.8]} 10... Nc6 {[%clk 0:03:00.2]} 11. Ba6 {[%clk
0:03:05.7]} 11... Rfe8 {[%clk 0:02:50.9]} 12. Bxb7 {[%clk 0:02:59.8]} 12... Qxb7
{[%clk 0:02:50.9]} 13. Rfd1 {[%clk 0:02:48.8]} 13... cxd4 {[%clk 0:02:39]} 14.
exd4 {[%clk 0:02:48.1]} 14... h6 {[%clk 0:02:33.7]} 15. Bxf6 {[%clk 0:02:46.9]}
15... Bxf6 {[%clk 0:02:33.9]} 16. d5 {[%clk 0:02:38.4]} 16... Ne5 {[%clk
0:02:29]} 17. Ne4 {[%clk 0:02:39.4]} 17... Nxf3+ {[%clk 0:02:25.3]} 18. Qxf3
{[%clk 0:02:40.2]} 18... Bg7 {[%clk 0:02:26.1]} 19. h4 {[%clk 0:02:34]} 19... b5
{[%clk 0:01:59.4]} 20. h5 {[%clk 0:02:22]} 20... bxa4 {[%clk 0:01:56.7]} 21.
hxg6 {[%clk 0:02:22.4]} 21... fxg6 {[%clk 0:01:56.9]} 22. Rd2 {[%clk 0:02:23.6]}
22... Qd7 {[%clk 0:01:50]} 23. Qd1 {[%clk 0:02:16.5]} 23... Reb8 {[%clk
0:01:16.2]} 24. Qxa4 {[%clk 0:02:13.3]} 24... Qxa4 {[%clk 0:01:16.1]} 25. Rxa4
{[%clk 0:02:13.6]} 25... Rb5 {[%clk 0:01:17.7]} 26. Ra2 {[%clk 0:01:54.2]} 26...
a5 {[%clk 0:01:06.1]} 27. Kf1 {[%clk 0:01:48.7]} 27... Rf8 {[%clk 0:01:01]} 28.
Ke2 {[%clk 0:01:36.5]} 28... Rf5 {[%clk 0:00:58.2]} 29. c4 {[%clk 0:01:30.7]}
29... Rb4 {[%clk 0:00:59.5]} 30. Rc2 {[%clk 0:01:25.7]} 30... a4 {[%clk
0:00:54.6]} 31. Kd3 {[%clk 0:01:17.1]} 31... Rf4 {[%clk 0:00:44.8]} 32. f3
{[%clk 0:00:40.8]} 32... g5 {[%clk 0:00:43.4]} 33. Ke3 {[%clk 0:00:36.8]} 33...
Be5 {[%clk 0:00:38]} 34. c5 {[%clk 0:00:25.8]} 34... dxc5 {[%clk 0:00:14.1]} 35.
Nxc5 {[%clk 0:00:26.2]} 35... Bd4+ {[%clk 0:00:13.9]} 36. Ke2 {[%clk 0:00:25.3]}
36... Bxc5 {[%clk 0:00:15.4]} 37. Rxc5 {[%clk 0:00:26]} 37... Rfd4 {[%clk
0:00:16.9]} 38. Ke3 {[%clk 0:00:17.4]} 38... Kf7 {[%clk 0:00:16.4]} 39. Ra3
{[%clk 0:00:08.8]} 39... Rd1 {[%clk 0:00:15.3]} 40. Ra2 {[%clk 0:00:08.5]} 40...
Rb3+ {[%clk 0:00:14.9]} 41. Ke2 {[%clk 0:00:08.9]} 41... Rd4 {[%clk 0:00:12.7]}
42. Rc3 {[%clk 0:00:07.6]} 42... Rxd5 {[%clk 0:00:08.5]} 43. Rxb3 {[%clk
0:00:07.3]} 43... axb3 {[%clk 0:00:09.9]} 44. Ra3 {[%clk 0:00:09]} 44... Rb5
{[%clk 0:00:10.8]} 45. Kd3 {[%clk 0:00:10.5]} 45... h5 {[%clk 0:00:10.3]} 46.
Kc4 {[%clk 0:00:11.6]} 46... Re5 {[%clk 0:00:11.3]} 47. Kd3 {[%clk 0:00:11.8]}
47... Re2 {[%clk 0:00:13.2]} 48. Kxe2 {[%clk 0:00:12.6]} 1-0

[Event "*** Titled Tuesday Blitz"]
[Site "Chess.com"]
[Date "2020.02.04"]
[Round "6"]
[White "TrimitziosP7"]
[Black "LiemLe"]
[Result "1-0"]
[WhiteElo "2790"]
[BlackElo "2963"]
[TimeControl "180+2"]
[EndTime "10:22:34 PST"]
[Termination "TrimitziosP7 won by resignation"]

1. Nf3 {[%clk 0:03:01.9]} 1... Nf6 {[%clk 0:02:59.5]} 2. b3 {[%clk 0:02:49.6]}
2... g6 {[%clk 0:02:55.6]} 3. Bb2 {[%clk 0:02:48]} 3... Bg7 {[%clk 0:02:57.5]}
4. g3 {[%clk 0:02:48.1]} 4... O-O {[%clk 0:02:56.3]} 5. Bg2 {[%clk 0:02:49.1]}
5... d5 {[%clk 0:02:54.1]} 6. c4 {[%clk 0:02:49.6]} 6... e6 {[%clk 0:02:43.4]}
7. O-O {[%clk 0:02:49.2]} 7... b6 {[%clk 0:02:44.2]} 8. d3 {[%clk 0:02:50.1]}
8... Bb7 {[%clk 0:02:42.6]} 9. e3 {[%clk 0:02:51]} 9... c5 {[%clk 0:02:43.3]}
10. Qe2 {[%clk 0:02:51.2]} 10... Nc6 {[%clk 0:02:44]} 11. Nc3 {[%clk 0:02:51.2]}
11... Qe7 {[%clk 0:02:41.5]} 12. Rfd1 {[%clk 0:02:48.4]} 12... Rfd8 {[%clk
0:02:41.8]} 13. Rac1 {[%clk 0:02:44.4]} 13... d4 {[%clk 0:02:29.5]} 14. exd4
{[%clk 0:02:41.3]} 14... cxd4 {[%clk 0:02:31.4]} 15. Nb1 {[%clk 0:02:30.1]}
15... Nd7 {[%clk 0:02:26.1]} 16. a3 {[%clk 0:02:26.9]} 16... a5 {[%clk
0:02:26.3]} 17. Nbd2 {[%clk 0:02:26.6]} 17... Nc5 {[%clk 0:02:27.2]} 18. Rb1
{[%clk 0:02:20.2]} 18... e5 {[%clk 0:02:19.6]} 19. Ne1 {[%clk 0:02:11.1]} 19...
Qc7 {[%clk 0:02:09.4]} 20. Ba1 {[%clk 0:02:04.4]} 20... Ne6 {[%clk 0:01:54.9]}
21. Nc2 {[%clk 0:01:59.1]} 21... Ne7 {[%clk 0:01:50.7]} 22. Bxb7 {[%clk
0:01:51.3]} 22... Qxb7 {[%clk 0:01:52.6]} 23. Qe4 {[%clk 0:01:48.7]} 23... Qd7
{[%clk 0:01:36.9]} 24. b4 {[%clk 0:01:42.2]} 24... axb4 {[%clk 0:01:37.2]} 25.
axb4 {[%clk 0:01:43.7]} 25... Ra2 {[%clk 0:01:37.7]} 26. Rb2 {[%clk 0:01:30.1]}
26... Qa4 {[%clk 0:01:34.3]} 27. Rc1 {[%clk 0:01:25.5]} 27... Bh6 {[%clk
0:01:20.6]} 28. Qe2 {[%clk 0:01:07.3]} 28... Nf5 {[%clk 0:01:15.9]} 29. Rcb1
{[%clk 0:01:00.4]} 29... Rxb2 {[%clk 0:01:06]} 30. Rxb2 {[%clk 0:01:01.3]} 30...
Nd6 {[%clk 0:00:53.2]} 31. Nf3 {[%clk 0:00:19]} 31... Nxc4 {[%clk 0:00:47.7]}
32. Rb1 {[%clk 0:00:15.9]} 32... Nd2 {[%clk 0:00:47.4]} 33. Nxd2 {[%clk
0:00:10.9]} 33... Qxc2 {[%clk 0:00:48.4]} 34. Rd1 {[%clk 0:00:12.4]} 34... Ra8
{[%clk 0:00:46.5]} 35. Qf3 {[%clk 0:00:03.9]} 35... Rxa1 {[%clk 0:00:25.6]} 36.
Rxa1 {[%clk 0:00:05.8]} 36... Qxd2 {[%clk 0:00:26.8]} 37. Ra8+ {[%clk
0:00:06.2]} 37... Bf8 {[%clk 0:00:27.5]} 38. Ra7 {[%clk 0:00:07]} 38... Ng5
{[%clk 0:00:26]} 39. Qf6 {[%clk 0:00:07]} 39... Qd1+ {[%clk 0:00:12.8]} 40. Kg2
{[%clk 0:00:07.4]} 40... Qg4 {[%clk 0:00:14.7]} 41. h4 {[%clk 0:00:04.4]} 41...
Qh3+ {[%clk 0:00:13.1]} 42. Kg1 {[%clk 0:00:05.2]} 42... Qg4 {[%clk 0:00:15]}
43. hxg5 {[%clk 0:00:04.7]} 43... Qe6 {[%clk 0:00:16.6]} 44. Qxe6 {[%clk
0:00:05.7]} 44... fxe6 {[%clk 0:00:18.5]} 45. b5 {[%clk 0:00:07.1]} 45... Bc5
{[%clk 0:00:19.6]} 46. f4 {[%clk 0:00:07.7]} 46... e4 {[%clk 0:00:20.4]} 47.
dxe4 {[%clk 0:00:07.9]} 47... d3+ {[%clk 0:00:22.3]} 48. Kf1 {[%clk 0:00:09.4]}
48... d2 {[%clk 0:00:23.2]} 49. Ke2 {[%clk 0:00:10.6]} 49... Be3 {[%clk
0:00:24.9]} 50. Ra1 {[%clk 0:00:11.3]} 50... Bd4 {[%clk 0:00:25.4]} 51. Rd1
{[%clk 0:00:12.6]} 51... Bc3 {[%clk 0:00:27.1]} 52. Kd3 {[%clk 0:00:13.3]} 52...
Bb4 {[%clk 0:00:28.1]} 53. Kc2 {[%clk 0:00:13.9]} 53... Kf7 {[%clk 0:00:29]} 54.
Ra1 {[%clk 0:00:15.1]} 54... Ba5 {[%clk 0:00:29.2]} 55. Rxa5 {[%clk 0:00:14.8]}
55... bxa5 {[%clk 0:00:31.1]} 56. Kxd2 {[%clk 0:00:16.3]} 56... Ke7 {[%clk
0:00:32]} 57. Kc3 {[%clk 0:00:17.7]} 57... Kd6 {[%clk 0:00:33.4]} 58. Kb3 {[%clk
0:00:18.6]} 58... Kc5 {[%clk 0:00:34.1]} 59. Ka4 {[%clk 0:00:19.9]} 59... Kb6
{[%clk 0:00:35.6]} 60. g4 {[%clk 0:00:21.3]} 1-0